bitfinex-derivatives/quotes_ETHF0:USTF0_20250528
["timestamp","ask_amount","ask_price","bid_price","bid_amount"]
[1748432944124,1.3248,2652.1,2651.9,3.678]
[1748432946224,1.3248,2652.1,2651.8,1.3133]
[1748432946429,1.3248,2652.1,2651.9,3.677]
[1748432948533,1.3248,2652.1,2651.5,1.3602]
[1748432948727,1.3248,2652.1,2651.8,3.677]
[1748432949133,1.3248,2652.1,2651.8,4.9819]
[1748432949836,1.3248,2652.1,2651.8,3.677]
[1748432950740,1.3248,2652.1,2651.7,3.676]
[1748432951035,0.07463908,2651.8,2651.7,3.676]
[1748432951628,0.07463908,2651.8,2651.6,1.3324]
[1748432951830,1.8668,2651.7,2651.6,1.3324]
[1748432952032,2.5141,2651.7,2651.6,5.0084]
[1748432954346,2.5141,2651.7,2651.4,3.2078]
[1748432954534,1.3653,2651.6,2651.5,3.676]
[1748432956539,1.3653,2651.6,2651.4,4.5026]
[1748432956736,1.3653,2651.6,2651.3,3.676]
[1748432957038,1.3653,2651.6,2651.2,3.676]
[1748432960237,1.3653,2651.6,2651.2,4.9207]
[1748432961240,1.43993908,2651.6,2651.2,4.9207]
[1748432962546,1.43993908,2651.6,2651.3,1.3468]
[1748432965844,1.43993908,2651.6,2651.0,3.2078]
[1748432966046,3.2078,2651.3,2650.7,3.2078]
[1748432966245,2.5835,2651.2,2650.6,5.0352]
[1748432966448,3.2078,2650.9,2650.6,3.677]
[1748432966649,1.3011,2651.2,2650.6,3.677]
[1748432966650,1.9527,2650.8,2650.6,3.677]
[1748432966848,1.901,2650.7,2650.6,3.677]
[1748432968052,1.901,2650.7,2650.3,5.0352]
[1748432968750,5.1088,2650.7,2650.3,3.677]
[1748432968945,5.1088,2650.7,2650.2,1.9628]
[1748432970046,1.2685,2650.6,2650.3,1.3136]
[1748432972650,1.2685,2650.6,2650.1,3.2078]
[1748432973048,1.2685,2650.6,2650.2,1.2871]
[1748432974348,3.2078,2650.4,2649.9,3.678]
[1748432974549,1.3425,2650.3,2649.9,3.678]
[1748432974750,0.6677,2650.2,2649.9,5.0063]
[1748432974949,1.3425,2650.1,2649.9,5.0063]
[1748432975653,1.3425,2650.1,2650.0,1.3283]
[1748432976150,0.6677,2650.2,2650.0,1.3283]
[1748432976355,1.9842,2650.3,2650.0,1.3283]
[1748432976558,1.9842,2650.3,2650.0,4.5361]
[1748432976853,1.9842,2650.3,2650.0,5.1846]
[1748432977053,1.9842,2650.3,2650.1,1.3283]
[1748432978358,0.6677,2650.5,2650.1,1.3283]
[1748432978662,0.07463908,2650.6,2650.1,1.3283]
[1748432978953,3.2134607,2651.0,2650.4,3.2078]
[1748432979258,3.2134607,2651.0,2650.5,6.2878]
[1748432979457,3.2134607,2651.0,2650.6,17.252]
[1748432979652,0.0056607,2651.0,2650.7,1.2664]
[1748432979851,0.0056607,2651.0,2650.7,4.4742]
[1748432980358,0.0056607,2651.0,2650.8,1.3]
[1748432980547,0.0056607,2651.0,2650.9,3.677]
[1748432989764,0.08029978,2651.0,2650.9,3.677]
[1748432993862,0.08029978,2651.0,2650.9,4.9463]
[1748432994056,0.08029978,2651.0,2650.9,3.677]
[1748432994256,0.08029978,2651.0,2650.9,3.676]
[1748433000168,0.08029978,2651.0,2650.9,4.2961]
[1748433000764,0.08029978,2651.0,2650.9,5.5444]
[1748433003266,1.2315,2651.4,2650.9,5.5444]
[1748433003465,1.2315,2651.4,2651.1,3.2078]
[1748433003664,1.2315,2651.4,2651.2,1.2879]
[1748433004670,1.2315,2651.4,2651.1,3.2078]
[1748433004876,1.2315,2651.4,2651.1,6.8838]
[1748433005359,1.2315,2651.4,2651.1,8.2124]
[1748433005559,1.2315,2651.4,2651.2,1.3286]
[1748433012073,1.2315,2651.4,2651.1,3.2078]
[1748433012370,1.2315,2651.4,2651.1,20.918]
[1748433014570,1.2315,2651.4,2651.1,24.1258]
[1748433014766,1.2315,2651.4,2651.2,1.2572]
[1748433016071,3.8370607,2651.6,2651.2,1.2572]
[1748433016372,3.8370607,2651.6,2651.3,0.6448]
[1748433016671,3.8370607,2651.6,2651.4,1.2572]
[1748433017069,3.8370607,2651.6,2651.1,3.2078]
[1748433017366,1.9115,2651.5,2651.2,3.674]
[1748433017681,1.2766,2651.4,2651.2,20.917]
[1748433017972,1.2766,2651.4,2651.1,6.8818]
[1748433018173,1.2766,2651.4,2651.1,3.674]
[1748433019370,1.2766,2651.4,2651.0,1.3112607]
[1748433019565,1.2766,2651.4,2651.1,3.674]
[1748433019768,1.2766,2651.4,2651.0,1.3112607]
[1748433019963,1.2766,2651.4,2651.1,3.674]
[1748433020267,1.35123908,2651.4,2651.1,3.674]
[1748433020467,1.35123908,2651.4,2651.1,8.2002]
[1748433020666,1.35123908,2651.4,2651.2,1.3184]
[1748433022569,0.07463908,2651.4,2651.2,1.3184]
[1748433022771,0.07463908,2651.4,2651.3,1.2932]
[1748433026078,3.2078,2652.6,2651.3,6.2932]
[1748433026272,0.6157,2652.4,2652.0,3.2078]
[1748433026583,0.6157,2652.4,2652.1,4.3429]
[1748433026887,1.9438,2652.4,2652.1,5.6205]
[1748433027177,1.9438,2652.4,2652.2,1.2776]
[1748433032569,1.2994,2652.3,2652.0,3.2078]
[1748433032767,4.5072,2652.3,2652.0,3.674]
[1748433033169,1.2994,2652.2,2652.0,3.674]
[1748433033573,0.6323,2652.1,2652.0,3.674]
[1748433036683,0.6323,2652.1,2651.7,1.3466]
[1748433036881,1.3232,2652.0,2651.8,3.674]
[1748433037081,0.6338,2651.9,2651.7,1.3466]
[1748433037379,0.6338,2651.9,2651.6,3.2078]
[1748433037577,1.3232,2651.8,2651.7,3.693]
[1748433037978,1.3232,2651.8,2651.7,4.9409]
[1748433038478,0.6338,2651.9,2651.7,4.9409]
[1748433038679,0.6338,2651.9,2651.8,1.2741]
[1748433039474,0.6323,2652.1,2651.8,1.2741]
[1748433039675,0.6323,2652.1,2651.8,2.5443]
[1748433039879,0.6323,2652.1,2651.9,3.2078]
[1748433040177,0.6323,2652.1,2652.0,1.2741]
[1748433043278,0.6323,2652.1,2651.9,3.2078]
[1748433043482,1.2476,2652.0,2651.9,3.2078]
[1748433045178,0.6323,2652.1,2651.9,3.2078]
[1748433045378,1.3676,2652.0,2651.9,4.5736]
[1748433047285,1.3676,2652.0,2651.9,1.3658]
[1748433050588,1.44223908,2652.0,2651.9,1.3658]
[1748433052286,1.44223908,2652.0,2651.5,1.2607]
[1748433052484,1.44223908,2652.0,2651.7,3.693]
[1748433053378,1.44223908,2652.0,2651.6,1.2691]
[1748433053581,1.44223908,2652.0,2651.7,3.693]
[1748433054386,1.44223908,2652.0,2651.6,1.2691]
[1748433054587,1.44223908,2652.0,2651.7,3.693]
[1748433055688,1.44223908,2652.0,2651.8,1.2463]
[1748433057091,1.44223908,2652.0,2651.7,3.693]
[1748433058787,1.44223908,2652.0,2651.6,5.007]
[1748433059195,1.44223908,2652.0,2651.7,1.314]
[1748433061689,1.22586049,2651.9,2651.5,4.9537]
[1748433061894,2.47966049,2651.8,2651.5,3.693]
[1748433062193,1.22630391,2651.7,2651.5,4.9298]
[1748433062387,1.96713908,2652.0,2651.6,1.9124]
[1748433062689,1.96713908,2652.0,2651.7,1.3456]
[1748433062690,1.22629922,2651.9,2651.7,1.3456]
[1748433062890,1.22629922,2651.8,2651.7,1.3456]
[1748433063191,0.07463908,2652.0,2651.7,1.3456]
[1748433063389,1.19059134,2651.9,2651.7,1.3456]
[1748433063591,0.07463908,2652.0,2651.7,1.3456]
[1748433063791,1.19059938,2651.9,2651.7,1.3456]
[1748433063993,0.07463908,2652.0,2651.7,1.3456]
[1748433064293,1.19059687,2651.9,2651.7,1.3456]
[1748433064490,0.07463908,2652.0,2651.7,1.3456]
[1748433064691,1.19061319,2651.9,2651.7,1.3456]
[1748433064997,3.8401,2652.1,2651.7,1.3456]
[1748433065295,1.19062159,2652.0,2651.7,1.3456]
[1748433065489,1.19062159,2651.9,2651.7,1.3456]
[1748433065689,0.07463908,2651.8,2651.7,1.3456]
[1748433065997,0.07463908,2651.8,2651.7,4.5534]
[1748433067894,0.07463908,2651.8,2651.7,9.5534]
[1748433068696,3.2078,2652.4,2651.7,9.5534]
[1748433068898,3.2078,2652.4,2652.0,3.2078]
[1748433069194,3.2078,2652.4,2652.1,6.2407]
[1748433069398,3.2078,2652.4,2652.2,1.2669]
[1748433070898,0.6827,2652.3,2652.2,1.2669]
[1748433072698,1.9617,2652.3,2652.2,1.2669]
[1748433073004,2.6423,2652.3,2652.1,3.673]
[1748433073204,1.279,2652.2,2652.1,3.673]
[1748433074096,1.279,2652.2,2651.8,1.2687]
[1748433074297,1.279,2652.2,2652.0,3.673]
[1748433080615,1.35363908,2652.2,2651.9,3.673]
[1748433082325,1.35363908,2652.2,2651.8,1.2687]
[1748433082623,1.35363908,2652.2,2651.8,4.9417]
[1748433083623,1.35363908,2652.2,2651.9,3.673]
[1748433083823,1.35363908,2652.2,2651.8,1.2687]
[1748433084026,1.35363908,2652.2,2651.8,4.9417]
[1748433084727,1.35363908,2652.2,2651.8,1.2687]
[1748433084928,1.35363908,2652.2,2651.8,4.9417]
[1748433085829,1.35363908,2652.2,2651.8,1.2687]
[1748433086133,1.35363908,2652.2,2651.8,4.9417]
[1748433086631,1.35363908,2652.2,2651.8,1.2687]
[1748433087625,1.35363908,2652.2,2651.8,4.9417]
[1748433089230,1.35363908,2652.2,2651.9,1.2635]
[1748433089432,1.35363908,2652.2,2651.8,3.673]
[1748433089837,1.35363908,2652.2,2651.6,5.0883]
[1748433090032,3.2078,2652.1,2651.7,3.673]
[1748433090225,1.2747,2652.0,2651.7,3.673]
[1748433090432,0.6182,2651.9,2651.7,5.0359]
[1748433091234,0.6182,2651.9,2651.8,1.3629]
[1748433091436,1.2747,2652.0,2651.8,1.3629]
[1748433091637,1.2747,2652.0,2651.8,5.0359]
[1748433091842,1.2747,2652.0,2651.8,1.3629]
[1748433092135,1.2747,2652.0,2651.9,1.3629]
[1748433092352,1.2747,2652.0,2651.7,3.673]
[1748433092560,0.6614,2651.9,2651.6,3.2078]
[1748433092749,1.2747,2651.8,2651.5,5.0359]
[1748433092933,1.2747,2651.8,2651.5,3.673]
[1748433093143,0.6228,2651.7,2651.3,4.9674]
[1748433093331,1.337,2651.6,2651.3,4.9674]
[1748433095139,1.337,2651.6,2651.4,1.2944]
[1748433096439,4.5448,2651.6,2651.2,3.2078]
[1748433096642,0.6336,2651.5,2651.2,3.673]
[1748433096841,1.9167,2651.5,2651.2,4.9627]
[1748433097041,1.9167,2651.5,2651.3,1.2897]
[1748433097940,1.2831,2651.4,2651.3,1.2897]
[1748433098832,3.2078,2651.6,2651.3,1.2897]
[1748433099443,0.69743908,2651.7,2651.3,1.2897]
[1748433099941,1.2689,2651.6,2651.3,1.2897]
[1748433102044,4.4767,2651.6,2651.3,1.2897]
[1748433102450,1.2329,2651.5,2651.3,1.2897]
[1748433104448,3.2078,2651.6,2651.3,1.2897]
[1748433105346,0.6228,2651.7,2651.3,1.2897]
[1748433106166,1.9359,2651.7,2651.3,1.2897]
[1748433106362,0.6496,2651.8,2651.3,1.2897]
[1748433108250,0.07463908,2651.7,2651.3,1.2897]
[1748433110253,4.5483,2651.9,2651.3,1.2897]
[1748433110755,3.2078,2651.9,2651.3,1.2897]
[1748433111251,0.07463908,2651.8,2651.3,1.2897]
[1748433111749,1.43213908,2651.8,2651.3,1.2897]
[1748433114345,2.04883908,2651.8,2651.4,3.672]
[1748433114650,2.04883908,2651.8,2651.5,1.282]
[1748433114852,1.2563,2651.7,2651.5,1.282]
[1748433115457,0.6623,2651.6,2651.5,1.282]
[1748433116555,3.8701,2651.6,2651.5,1.282]
[1748433120959,3.2078,2651.6,2651.5,1.282]
[1748433121153,3.2078,2651.6,2651.5,2.6237]
[1748433121467,0.69133908,2651.8,2651.5,2.6237]
[1748433121647,0.69133908,2651.8,2651.6,1.2759]
[1748433122458,0.07463908,2651.8,2651.6,1.2759]
[1748433129268,0.07463908,2651.8,2651.7,3.669]
[1748433132967,1.9443,2652.4,2651.7,8.669]
[1748433133164,1.9443,2652.4,2651.8,4.5175]
[1748433133362,1.9443,2652.4,2651.9,1.9321]
[1748433133671,1.9443,2652.4,2652.0,1.3097]
[1748433133870,1.9443,2652.4,2652.1,3.669]
[1748433134066,1.9443,2652.4,2652.2,1.3097]
[1748433137676,1.3604,2652.3,2652.2,1.3097]
[1748433138676,1.3604,2652.3,2651.9,1.2814]
[1748433138879,1.3604,2652.3,2652.0,4.9697]
[1748433139774,1.43503908,2652.3,2652.0,4.9697]
[1748433141680,1.43503908,2652.3,2652.1,1.3034]
[1748433142781,1.3604,2652.3,2652.1,1.3034]
[1748433143681,1.43503908,2652.3,2652.1,1.3034]
[1748433145181,3.2078,2652.2,2651.9,0.6224]
[1748433145380,1.2474,2652.1,2651.8,1.3343]
[1748433145581,0.636,2652.0,2651.8,1.3343]
[1748433145775,1.2474,2651.9,2651.6,1.3343]
[1748433145983,1.2474,2651.9,2651.6,5.0033]
[1748433146177,0.6463,2651.8,2651.6,5.0033]
[1748433146671,0.6463,2651.8,2651.1,1.2725]
[1748433146873,1.2474,2651.7,2651.2,5.0033]
[1748433147080,0.636,2651.6,2651.3,1.3343]
[1748433147283,1.2474,2651.5,2651.3,1.3343]
[1748433151183,0.6463,2651.8,2651.3,1.3343]
[1748433151382,2.6023,2651.8,2651.3,1.3343]
[1748433151581,1.2833,2651.7,2651.3,1.3343]
[1748433153187,3.2078,2651.6,2651.3,1.3343]
[1748433153387,1.2833,2651.5,2651.3,1.3343]
[1748433153892,0.634,2651.4,2651.3,1.3343]
[1748433154185,1.2718,2651.4,2651.3,1.3343]
[1748433155988,1.2718,2651.4,2651.3,5.0033]
[1748433159393,1.2718,2651.4,2651.3,5.0003]
[1748433167528,1.2718,2651.4,2651.0,3.6716607]
[1748433167797,4.5111,2651.3,2651.0,3.6716607]
[1748433168008,1.3033,2651.2,2651.0,0.0056607]
[1748433169905,6.3033,2651.2,2651.0,0.0056607]
[1748433170410,1.3583,2651.1,2650.6,3.2078]
[1748433170614,3.2078,2651.0,2650.6,3.2078]
[1748433170907,2.0267,2650.9,2650.6,3.2078]
[1748433171125,1.3583,2650.8,2650.6,3.2078]
[1748433171709,1.3583,2650.8,2650.6,2.8307]
[1748433173314,0.6684,2650.9,2650.6,2.8307]
[1748433173513,3.8695607,2651.0,2650.7,2.678]
[1748433173707,3.8695607,2651.0,2650.8,1.3599]
[1748433174919,0.6617607,2651.0,2650.8,1.3599]
[1748433175107,0.0056607,2651.0,2650.8,1.3599]
[1748433178806,0.0056607,2651.0,2650.8,5.0269]
[1748433179008,1.3310607,2651.0,2650.8,5.0269]
[1748433179407,1.3310607,2651.0,2650.8,1.3599]
[1748433179607,1.3310607,2651.0,2650.8,5.0269]
[1748433181514,1.3310607,2651.0,2650.9,1.3033]
[1748433185213,0.0056607,2651.0,2650.9,1.3033]
[1748433185522,0.08029978,2651.0,2650.9,1.3033]
[1748433192424,0.08029978,2651.0,2650.9,4.9673]
[1748433199637,3.2078,2651.6,2650.9,4.9673]
[1748433199852,3.2078,2652.5,2651.5,3.2078]
[1748433200142,1.19040668,2652.4,2652.0,3.2078]
[1748433200332,1.19040668,2652.4,2652.1,22.8372]
[1748433200526,1.19040668,2652.4,2652.2,1.9567]
[1748433200719,1.19040668,2652.4,2652.3,1.3116]
[1748433201126,1.19040668,2652.4,2652.3,4.5194]
[1748433202423,1.19040668,2652.4,2652.3,3.2078]
[1748433202621,1.19040668,2652.4,2652.2,3.663]
[1748433202928,1.19040668,2652.4,2652.0,3.2134607]
[1748433202929,1.19040668,2652.4,2652.0,0.0056607]
[1748433203127,4.39820668,2652.4,2652.0,0.0056607]
[1748433203328,1.19040668,2652.4,2652.0,0.0056607]
[1748433204132,4.39820668,2652.4,2652.0,0.0056607]
[1748433204830,2.6328,2652.3,2652.0,0.0056607]
[1748433206027,2.6328,2652.3,2652.0,3.2134607]
[1748433210731,2.6328,2652.3,2652.0,4.4995607]
[1748433211434,2.6328,2652.3,2652.0,5.1383607]
[1748433211735,1.19040668,2652.4,2652.0,5.1383607]
[1748433211921,1.19040668,2652.4,2652.0,5.7904607]
[1748433213429,1.2941,2652.3,2652.1,20.883]
[1748433214341,1.2941,2652.3,2652.2,1.2399]
[1748433215537,1.26504576,2652.4,2652.2,1.2399]
[1748433216040,1.26504576,2652.4,2652.2,4.9029]
[1748433216943,1.26504576,2652.4,2652.3,1.3215]
[1748433217239,1.26504576,2652.4,2652.3,4.5293]
[1748433226843,1.26504576,2652.4,2652.3,8.1903]
[1748433227045,3.20034576,2652.4,2652.3,8.1903]
[1748433230744,3.20034576,2652.4,2652.3,4.5293]
[1748433231752,1.26504576,2652.4,2652.3,4.5293]
[1748433240547,1.26504576,2652.4,2652.3,25.4053]
[1748433240850,0.0056607,2652.6,2652.3,25.4053]
[1748433241061,3.2078,2653.7,2652.4,1.9021]
[1748433241350,1.3672,2653.5,2653.1,3.2078]
[1748433241539,0.6756,2653.4,2653.1,3.2078]
[1748433241742,1.3672,2653.3,2653.2,1.258]
[1748433241945,1.3672,2653.3,2653.1,3.2078]
[1748433242148,0.6838,2653.2,2653.1,3.2078]
[1748433244056,0.0056607,2653.5,2653.1,3.2078]
[1748433244364,0.0056607,2653.5,2653.2,1.3277]
[1748433244683,3.2078,2654.4,2653.4,3.2078]
[1748433244883,47.0659,2655.0,2654.0,3.2078]
[1748433244884,1.2695,2654.3,2654.0,3.2078]
[1748433245070,3.2078,2654.7,2654.1,5.6367]
[1748433245274,3.2078,2654.7,2654.3,3.2078]
[1748433245473,3.2078,2654.7,2654.4,1.2593]
[1748433245853,4.4966,2654.7,2654.4,1.2593]
[1748433246167,1.2888,2654.7,2654.6,3.2078]
[1748433246653,0.0056607,2654.8,2654.6,3.2078]
[1748433246864,0.0056607,2654.8,2654.7,1.2593]
[1748433249895,3.2078,2656.4,2654.7,6.2593]
[1748433250192,3.01527145,2659.4,2657.1,3.2078]
[1748433250389,0.07520776,2659.3,2658.2,3.2078]
[1748433250588,4.331,2659.2,2658.2,3.2078]
[1748433250790,3.2078,2658.3,2657.4,3.2078]
[1748433250980,3.2078,2657.9,2657.4,3.2078]
[1748433251190,1.2477,2657.8,2657.4,3.2078]
[1748433251889,1.2477,2657.8,2657.3,0.00564887]
[1748433252088,0.00564887,2657.8,2657.3,3.21344887]
[1748433252277,1.3177,2657.7,2657.3,0.00564887]
[1748433252489,1.3177,2657.7,2657.4,3.2078]
[1748433252783,4.562,2657.6,2656.2,0.28767515]
[1748433252986,3.2078,2657.1,2656.1,3.2078]
[1748433253185,1.3177,2657.0,2656.4,3.2078]
[1748433253487,4.5255,2657.0,2656.4,3.2078]
[1748433253673,4.5255,2657.0,2656.4,0.00564887]
[1748433253863,3.2078,2656.9,2656.4,0.00564887]
[1748433254081,3.2078,2656.6,2655.5,3.2078]
[1748433254269,3.2078,2656.2,2655.5,3.2078]
[1748433254463,1.306,2656.1,2655.5,3.2078]
[1748433255072,1.31164887,2656.1,2655.9,3.2078]
[1748433255478,3.2078,2658.0,2656.4,3.2078]
[1748433255783,13.756,2660.7,2656.4,3.2078]
[1748433255784,3.2078,2658.6,2657.7,3.2078]
[1748433255969,45.359,2658.5,2657.7,3.2078]
[1748433256159,0.6452,2658.4,2657.7,3.2078]
[1748433256360,4.559,2658.3,2657.7,3.2078]
[1748433256598,3.2078,2660.0,2658.2,3.2078]
[1748433256792,1.15402145,2659.9,2659.8,3.2078]
[1748433256994,45.16182145,2659.9,2658.9,3.2078]
[1748433257185,3.2078,2659.6,2658.9,3.2078]
[1748433257376,3.2078,2659.1,2659.0,0.52467367]
[1748433257569,7.7668,2659.1,2658.8,0.00564887]
[1748433257771,0.00564887,2659.3,2658.8,0.00564887]
[1748433257976,4.559,2659.2,2658.8,0.00564887]
[1748433258383,3.2078,2658.9,2657.9,3.2078]
[1748433258578,3.2078,2658.9,2658.0,0.52547781]
[1748433258773,3.2078,2658.6,2657.9,3.2078]
[1748433258980,42.0781,2658.5,2658.0,0.5252515]
[1748433259183,45.2859,2658.5,2657.4,3.2078]
[1748433259480,0.6733,2658.4,2657.7,3.21344887]
[1748433259777,1.2781,2658.3,2658.0,3.2078]
[1748433260972,6.2781,2658.3,2657.7,0.00564887]
[1748433261173,1.2781,2658.3,2657.7,0.00564887]
[1748433261393,4.798,2659.4,2658.2,3.2078]
[1748433261569,0.6286,2659.0,2658.5,3.2078]
[1748433261774,0.6286,2659.0,2658.8,3.2078]
[1748433262379,0.6286,2659.0,2658.7,3.2078]
[1748433264374,5.4256,2659.0,2658.7,3.2078]
[1748433264580,0.6379,2658.9,2658.7,3.2078]
[1748433264881,4.797,2658.8,2658.7,3.2078]
[1748433265082,4.797,2658.8,2658.5,3.2078]
[1748433265274,0.6286,2659.0,2658.5,3.2078]
[1748433265275,5.4339,2658.7,2658.5,3.2078]
[1748433265581,4.796,2658.6,2658.5,3.2078]
[1748433265776,5.4339,2658.6,2658.5,3.2078]
[1748433265982,5.4339,2658.6,2657.8,1.2637]
[1748433265983,10.4339,2658.6,2658.3,3.2078]
[1748433266281,5.4339,2658.6,2658.2,3.2078]
[1748433266983,0.6379,2658.6,2658.2,3.2078]
[1748433267380,4.796,2658.5,2658.2,3.2078]
[1748433267582,0.6368,2658.4,2658.2,3.2078]
[1748433268384,37.925,2658.9,2658.3,1.3477]
[1748433268700,4.796,2658.8,2658.6,3.2078]
[1748433268883,4.796,2658.8,2658.7,1.87504313]
[1748433269082,5.4328,2658.8,2658.7,0.52734313]
[1748433269285,10.4328,2658.8,2658.6,3.2078]
[1748433269587,10.4328,2658.8,2658.3,3.2078]
[1748433269784,0.6368,2658.8,2658.3,3.2078]
[1748433270088,4.796,2658.7,2658.4,1.87609529]
[1748433270287,0.6368,2658.6,2658.4,1.348]
[1748433270778,0.6368,2658.6,2658.5,0.52886234]
[1748433270984,0.6368,2658.6,2658.5,0.52885592]
[1748433271684,5.4318,2658.6,2658.5,0.52885592]
[1748433271886,5.4318,2658.6,2658.5,0.52949947]
[1748433272084,37.925,2658.9,2658.4,1.348]
[1748433272384,4.795,2658.6,2658.4,1.348]
[1748433272785,4.795,2658.6,2658.5,0.52951476]
[1748433273688,4.795,2658.6,2658.5,0.53149192]
[1748433273890,4.795,2658.6,2658.4,1.348]
[1748433274089,0.6366,2658.5,2658.4,1.348]
[1748433275691,1.72048446,2658.5,2658.4,1.348]
[1748433276092,1.72048446,2658.5,2657.9,4.5677]
[1748433276391,1.08388446,2658.4,2657.9,4.5677]
[1748433276593,1.72048446,2658.4,2657.9,4.5677]
[1748433276892,1.70468446,2658.3,2657.9,4.5677]
[1748433277089,1.08388446,2658.2,2657.9,4.5677]
[1748433277490,1.08388446,2658.2,2658.0,0.53302399]
[1748433277691,1.08388446,2658.2,2658.1,1.89292399]
[1748433277892,5.87888446,2658.2,2658.1,1.8937726]
[1748433278094,5.87888446,2658.2,2658.1,1.89377069]
[1748433278294,5.87888446,2658.2,2658.1,1.3599]
[1748433278495,5.87888446,2658.2,2658.1,1.89380022]
[1748433278685,5.87888446,2658.2,2658.1,1.89475713]
[1748433278995,1.08388446,2658.2,2658.1,1.89484582]
[1748433279792,1.08388446,2658.2,2658.1,1.8823487]
[1748433279993,1.08388446,2658.2,2658.1,1.88235719]
[1748433280191,1.08388446,2658.2,2658.1,1.34599639]
[1748433280387,1.08388446,2658.2,2658.1,1.88236043]
[1748433280787,1.08388446,2658.2,2658.1,1.88240265]
[1748433281087,1.08388446,2658.2,2658.1,1.88244807]
[1748433281696,0.6368,2658.4,2658.1,1.87663284]
[1748433281898,1.08801494,2658.3,2658.2,0.53063371]
[1748433282189,1.08801494,2658.3,2658.2,0.53061023]
[1748433282395,1.08801494,2658.3,2658.2,0.52604997]
[1748433282595,6.08801494,2658.3,2658.2,0.52604997]
[1748433282797,6.71091494,2658.3,2658.2,0.52614958]
[1748433282997,6.71091494,2658.3,2658.2,0.52599788]
[1748433283189,6.71091494,2658.3,2658.2,0.52602153]
[1748433283395,6.71091494,2658.3,2658.2,0.5260519]
[1748433283597,6.71091494,2658.3,2657.9,3.2078]
[1748433283792,1.73931494,2658.2,2658.0,0.52635683]
[1748433283996,1.08801494,2658.1,2657.9,3.2078]
[1748433284300,5.88301494,2658.0,2657.9,3.2078]
[1748433284598,46.68301494,2658.0,2657.9,3.73525287]
[1748433284800,46.68301494,2658.0,2657.9,3.2078]
[1748433285097,46.68301494,2658.0,2657.9,3.73522465]
[1748433285301,1.08801494,2658.0,2657.9,3.73522465]
[1748433285502,1.08801494,2658.0,2657.9,3.73513493]
[1748433285894,1.08801494,2658.0,2657.9,3.2078]
[1748433286190,1.09119604,2658.0,2657.9,3.2078]
[1748433286395,1.09119604,2658.0,2657.9,3.73525124]
[1748433287400,1.09119604,2658.0,2657.9,3.2078]
[1748433287595,1.09119604,2658.0,2657.9,3.73525525]
[1748433287796,1.09119604,2658.0,2657.9,3.73530377]
[1748433288199,1.09119604,2658.0,2657.9,3.73532997]
[1748433288395,1.09119604,2658.0,2657.9,3.73533402]
[1748433288594,1.09119604,2658.0,2657.9,3.73533215]
[1748433288994,1.09119604,2658.0,2657.9,3.73532823]
[1748433289202,1.09119604,2658.0,2657.9,3.73532387]
[1748433289408,1.09119604,2658.0,2657.9,3.2078]
[1748433290102,1.09119604,2658.0,2657.9,3.73552135]
[1748433290295,1.09119604,2658.0,2657.9,3.73550019]
[1748433290808,1.16583512,2658.0,2657.9,3.73550019]
[1748433290996,6.16583512,2658.0,2657.7,0.00564887]
[1748433291208,4.95069604,2657.9,2657.2,3.2078]
[1748433291397,5.88619604,2657.8,2657.2,3.2078]
[1748433291603,1.74289604,2657.7,2657.2,3.2078]
[1748433291905,1.09119604,2657.6,2657.2,3.2078]
[1748433292202,2.39169604,2657.5,2657.2,3.2078]
[1748433292396,1.09119604,2657.4,2657.2,3.2078]
[1748433292600,5.68819604,2657.3,2657.2,3.2078]
[1748433293602,10.68819604,2657.3,2656.5,3.8343]
[1748433293805,1.74289604,2657.2,2656.5,3.8343]
[1748433294009,1.09119604,2657.1,2656.5,3.8343]
[1748433294206,5.68819604,2657.0,2656.5,3.8343]
[1748433294404,1.09119604,2656.9,2656.5,3.2078]
[1748433294705,4.597,2657.0,2656.4,0.00564887]
[1748433294906,1.06003517,2656.9,2656.4,0.00564887]
[1748433295113,1.06003517,2656.8,2656.4,0.00564887]
[1748433295307,1.06003517,2656.7,2656.6,3.2078]
[1748433296005,1.06003517,2656.7,2656.4,0.00564887]
[1748433296207,1.05948822,2656.6,2656.4,0.00564887]
[1748433296404,4.597,2657.0,2656.4,1.33164887]
[1748433296605,1.0590655,2656.9,2656.4,1.33164887]
[1748433296795,1.0590655,2656.8,2656.4,1.33164887]
[1748433297001,1.0590655,2656.7,2656.4,1.33164887]
[1748433297300,1.05903523,2656.6,2656.4,1.33164887]
[1748433297610,4.597,2657.0,2656.4,1.33164887]
[1748433297909,1.05851707,2656.9,2656.4,1.33164887]
[1748433298100,1.05851707,2656.8,2656.4,1.33164887]
[1748433298302,1.05851707,2656.7,2656.4,1.33164887]
[1748433298501,0.6519,2657.1,2656.4,1.33164887]
[1748433298700,5.65607127,2657.0,2656.4,1.33164887]
[1748433298897,1.05807127,2656.9,2656.4,1.33164887]
[1748433299204,1.0580606,2656.8,2656.4,1.33164887]
[1748433299504,4.598,2657.0,2656.4,1.33164887]
[1748433299701,1.0577733,2656.9,2656.4,1.33164887]
[1748433299902,1.0577733,2656.8,2656.4,1.33164887]
[1748433300105,4.598,2656.9,2656.6,3.2078]
[1748433300300,4.598,2656.9,2656.7,1.31]
[1748433301210,3.2078,2657.2,2656.7,1.31]
[1748433301421,8.4546,2657.5,2656.7,1.31]
[1748433301604,1.05737204,2657.4,2656.7,1.9898]
[1748433301815,8.4546,2657.5,2656.7,1.9898]
[1748433302115,3.2078,2657.5,2656.7,1.9898]
[1748433302331,0.00564887,2657.7,2657.3,3.2078]
[1748433302528,0.00564887,2657.7,2656.9,3.2078]
[1748433302704,1.29914887,2657.7,2657.0,1.31]
[1748433303317,0.00564887,2657.7,2657.0,1.31]
[1748433303610,0.00564887,2657.7,2657.2,3.2078]
[1748433303915,0.00564887,2657.7,2657.3,1.3658]